[Event "Titled Tuesday Blitz December 27 Early 2022"]
[White "Delorme, Alban"]
[Black "Eggleston, Thomas A"]
[WhiteFideId "623636"]
[BlackFideId "412139"]
[WhiteElo "2298"]
[BlackElo "2215"]
[Result "1-0"]
[Round "05"]
[TimeControl "180+2"]
[Date "2022.12.27"]
[WhiteClock "0:01:32"]
[BlackClock "0:01:04"]

1. e4 {[%clk 0:02:54]}  e6 {[%clk 0:03:00]} 2. d4 {[%clk 0:02:53]}  d5 {[%clk 0:03:00]} 3. Nc3 {[%clk 0:02:49]}  Nf6 {[%clk 0:02:59]} 4. e5 {[%clk 0:02:49]}  Nfd7 {[%clk 0:03:00]} 5. f4 {[%clk 0:02:49]}  c5 {[%clk 0:03:00]} 6. Nf3 {[%clk 0:02:50]}  Nc6 {[%clk 0:03:00]} 7. Be3 {[%clk 0:02:51]}  Be7 {[%clk 0:03:00]} 8. Qd2 {[%clk 0:02:49]}  O-O {[%clk 0:02:59]} 9. dxc5 {[%clk 0:02:48]}  Qa5 {[%clk 0:02:58]} 10. Be2 {[%clk 0:02:43]}  f6 {[%clk 0:02:13]} 11. exf6 {[%clk 0:02:40]}  Nxf6 {[%clk 0:02:12]} 12. O-O {[%clk 0:02:38]}  Bxc5 {[%clk 0:02:10]} 13. Nd4 {[%clk 0:02:33]}  Bd7 {[%clk 0:02:02]} 14. Nb3 {[%clk 0:02:23]}  Bxe3+ {[%clk 0:02:01]} 15. Qxe3 {[%clk 0:02:24]}  Qb4 {[%clk 0:01:50]} 16. Qc5 {[%clk 0:02:18]}  Rae8 {[%clk 0:01:42]} 17. Rae1 {[%clk 0:02:02]}  b6 {[%clk 0:01:37]} 18. Qb5 {[%clk 0:01:48]}  Qe7 {[%clk 0:01:23]} 19. Qd3 {[%clk 0:01:46]}  Qf7 {[%clk 0:01:17]} 20. Nd4 {[%clk 0:01:42]}  Nb4 {[%clk 0:01:13]} 21. Qd2 {[%clk 0:01:39]}  Ne4 {[%clk 0:01:11]} 22. Nxe4 {[%clk 0:01:38]}  dxe4 {[%clk 0:01:11]} 23. Qxb4 {[%clk 0:01:37]}  Qg6 {[%clk 0:01:08]} 24. Qd6 {[%clk 0:01:33]}  Rf7 {[%clk 0:01:07]} 25. Qe5 {[%clk 0:01:33]}  Bc8 {[%clk 0:01:04]} 26. Bh5 {[%clk 0:01:32]} 1-0


[Site "https://www.chess.com"]

[Event "Titled Tuesday Blitz December 27 Early 2022"]
[White "Demin, Vladimir"]
[Black "Boros, Denes"]
[WhiteFideId "4167457"]
[BlackFideId "722340"]
[WhiteElo "2430"]
[BlackElo "2406"]
[Result "1-0"]
[Round "05"]
[TimeControl "180+2"]
[Date "2022.12.27"]
[WhiteClock "0:00:30"]
[BlackClock "0:01:01"]

1. d4 {[%clk 0:02:55]}  b6 {[%clk 0:03:00]} 2. e4 {[%clk 0:02:54]}  Bb7 {[%clk 0:03:01]} 3. Nc3 {[%clk 0:02:53]}  e6 {[%clk 0:03:01]} 4. Bd3 {[%clk 0:02:53]}  Ne7 {[%clk 0:03:01]} 5. Nge2 {[%clk 0:02:48]}  d5 {[%clk 0:02:56]} 6. O-O {[%clk 0:02:39]}  c5 {[%clk 0:02:51]} 7. exd5 {[%clk 0:02:20]}  Nxd5 {[%clk 0:02:51]} 8. dxc5 {[%clk 0:01:49]}  Nxc3 {[%clk 0:02:35]} 9. Nxc3 {[%clk 0:01:48]}  Bxc5 {[%clk 0:02:36]} 10. Qg4 {[%clk 0:01:44]}  Qd4 {[%clk 0:02:13]} 11. Qg3 {[%clk 0:01:37]}  a6 {[%clk 0:02:04]} 12. Be3 {[%clk 0:01:27]}  Qd6 {[%clk 0:02:04]} 13. Qxg7 {[%clk 0:01:19]}  Rf8 {[%clk 0:02:03]} 14. Bxc5 {[%clk 0:01:16]}  Qxc5 {[%clk 0:02:03]} 15. Be4 {[%clk 0:01:15]}  Qc7 {[%clk 0:01:55]} 16. Rad1 {[%clk 0:01:05]}  Nd7 {[%clk 0:01:54]} 17. Bxb7 {[%clk 0:00:55]}  Qxb7 {[%clk 0:01:55]} 18. Qxh7 {[%clk 0:00:55]}  O-O-O {[%clk 0:01:53]} 19. Qe4 {[%clk 0:00:56]}  Rg8 {[%clk 0:01:48]} 20. Qxb7+ {[%clk 0:00:55]}  Kxb7 {[%clk 0:01:49]} 21. f3 {[%clk 0:00:53]}  Kc7 {[%clk 0:01:47]} 22. Kf2 {[%clk 0:00:52]}  Rh8 {[%clk 0:01:43]} 23. Rh1 {[%clk 0:00:50]}  Rc8 {[%clk 0:01:41]} 24. h4 {[%clk 0:00:49]}  Ne5 {[%clk 0:01:38]} 25. Ne4 {[%clk 0:00:47]}  b5 {[%clk 0:01:37]} 26. h5 {[%clk 0:00:40]}  Kb8 {[%clk 0:01:32]} 27. c3 {[%clk 0:00:39]}  Nc4 {[%clk 0:01:27]} 28. Rd7 {[%clk 0:00:38]}  f5 {[%clk 0:01:25]} 29. Nd6 {[%clk 0:00:38]}  Rc6 {[%clk 0:01:11]} 30. Nxc4 {[%clk 0:00:38]}  bxc4 {[%clk 0:01:12]} 31. h6 {[%clk 0:00:38]}  Rb6 {[%clk 0:01:10]} 32. h7 {[%clk 0:00:38]}  Rxb2+ {[%clk 0:01:10]} 33. Kg3 {[%clk 0:00:38]}  e5 {[%clk 0:01:11]} 34. Rh6 {[%clk 0:00:34]}  f4+ {[%clk 0:01:05]} 35. Kh2 {[%clk 0:00:33]}  Rb7 {[%clk 0:01:01]} 36. Rxb7+ {[%clk 0:00:30]}  Kxb7 {[%clk 0:01:01]} 37. Kh3 {[%clk 0:00:30]} 1-0


[Site "https://www.chess.com"]

[Event "Titled Tuesday Blitz December 27 Early 2022"]
[White "Derjabin, Ilja"]
[Black "Ciuffoletti, Paolo"]
[WhiteFideId "14104768"]
[BlackFideId "807630"]
[WhiteElo "2333"]
[BlackElo "2106"]
[Result "1-0"]
[Round "05"]
[TimeControl "180+2"]
[Date "2022.12.27"]
[WhiteClock "0:00:22"]
[BlackClock "0:00:02"]

1. d4 {[%clk 0:02:50]}  d5 {[%clk 0:02:57]} 2. c4 {[%clk 0:02:41]}  c6 {[%clk 0:02:56]} 3. Nc3 {[%clk 0:02:37]}  Nf6 {[%clk 0:02:55]} 4. Nf3 {[%clk 0:02:37]}  dxc4 {[%clk 0:02:54]} 5. a4 {[%clk 0:02:36]}  e6 {[%clk 0:02:50]} 6. e3 {[%clk 0:02:35]}  c5 {[%clk 0:02:48]} 7. Bxc4 {[%clk 0:02:35]}  Nc6 {[%clk 0:02:47]} 8. O-O {[%clk 0:02:34]}  cxd4 {[%clk 0:02:46]} 9. exd4 {[%clk 0:02:33]}  Be7 {[%clk 0:02:46]} 10. Bg5 {[%clk 0:02:25]}  O-O {[%clk 0:02:45]} 11. Re1 {[%clk 0:02:08]}  Nb4 {[%clk 0:02:37]} 12. Ne5 {[%clk 0:02:00]}  Bd7 {[%clk 0:02:28]} 13. Nxd7 {[%clk 0:01:55]}  Qxd7 {[%clk 0:02:22]} 14. Bb5 {[%clk 0:01:50]}  Qd6 {[%clk 0:02:01]} 15. Rc1 {[%clk 0:01:33]}  a6 {[%clk 0:01:33]} 16. Bf1 {[%clk 0:01:27]}  Rfd8 {[%clk 0:01:28]} 17. Qf3 {[%clk 0:01:26]}  Nfd5 {[%clk 0:01:18]} 18. Ne4 {[%clk 0:01:10]}  Qd7 {[%clk 0:01:04]} 19. h4 {[%clk 0:01:06]}  Bxg5 {[%clk 0:00:57]} 20. Nxg5 {[%clk 0:00:59]}  h6 {[%clk 0:00:42]} 21. Ne4 {[%clk 0:00:52]}  b6 {[%clk 0:00:20]} 22. a5 {[%clk 0:00:49]}  bxa5 {[%clk 0:00:14]} 23. Nc5 {[%clk 0:00:49]}  Qe7 {[%clk 0:00:15]} 24. h5 {[%clk 0:00:46]}  Qf6 {[%clk 0:00:14]} 25. Qg3 {[%clk 0:00:43]}  Rac8 {[%clk 0:00:09]} 26. Re5 {[%clk 0:00:40]}  Nc6 {[%clk 0:00:07]} 27. Bxa6 {[%clk 0:00:35]}  Nxe5 {[%clk 0:00:04]} 28. Bxc8 {[%clk 0:00:25]}  Rxc8 {[%clk 0:00:03]} 29. dxe5 {[%clk 0:00:25]}  Qe7 {[%clk 0:00:03]} 30. Qa3 {[%clk 0:00:23]}  Nb4 {[%clk 0:00:02]} 31. Qxa5 {[%clk 0:00:22]} 1-0


[Site "https://www.chess.com"]

[Event "Titled Tuesday Blitz December 27 Early 2022"]
[White "Dias, Joao Batista"]
[Black "Guha, Eshan"]
[WhiteFideId "2108240"]
[BlackFideId "30958628"]
[WhiteElo "1796"]
[BlackElo "2071"]
[Result "0-1"]
[Round "05"]
[TimeControl "180+2"]
[Date "2022.12.27"]
[WhiteClock "0:00:18"]
[BlackClock "0:00:18"]

1. e4 {[%clk 0:02:48]}  c5 {[%clk 0:02:59]} 2. Nf3 {[%clk 0:02:47]}  d6 {[%clk 0:03:00]} 3. d4 {[%clk 0:02:47]}  cxd4 {[%clk 0:03:00]} 4. Nxd4 {[%clk 0:02:47]}  Nf6 {[%clk 0:03:01]} 5. Bd3 {[%clk 0:02:46]}  Nc6 {[%clk 0:02:47]} 6. Nxc6 {[%clk 0:02:46]}  bxc6 {[%clk 0:02:48]} 7. O-O {[%clk 0:02:46]}  g6 {[%clk 0:02:39]} 8. b3 {[%clk 0:02:46]}  Bg7 {[%clk 0:02:39]} 9. Bb2 {[%clk 0:02:47]}  O-O {[%clk 0:02:39]} 10. Nd2 {[%clk 0:02:46]}  a5 {[%clk 0:02:38]} 11. a4 {[%clk 0:02:46]}  Bb7 {[%clk 0:02:33]} 12. Qe2 {[%clk 0:02:46]}  Qc7 {[%clk 0:02:26]} 13. Rad1 {[%clk 0:02:45]}  Rad8 {[%clk 0:02:23]} 14. f4 {[%clk 0:02:33]}  Qb6+ {[%clk 0:02:21]} 15. Kh1 {[%clk 0:02:32]}  Bc8 {[%clk 0:02:22]} 16. Nc4 {[%clk 0:02:31]}  Qa7 {[%clk 0:02:20]} 17. h3 {[%clk 0:02:31]}  d5 {[%clk 0:02:15]} 18. Ne5 {[%clk 0:02:28]}  Qc7 {[%clk 0:02:13]} 19. exd5 {[%clk 0:02:23]}  cxd5 {[%clk 0:02:10]} 20. Ba3 {[%clk 0:02:15]}  Rfe8 {[%clk 0:01:56]} 21. Bb5 {[%clk 0:02:11]}  Rf8 {[%clk 0:01:50]} 22. Bd3 {[%clk 0:02:11]}  Bb7 {[%clk 0:01:42]} 23. Rde1 {[%clk 0:02:03]}  Ne4 {[%clk 0:01:41]} 24. Bxe4 {[%clk 0:01:48]}  dxe4 {[%clk 0:01:42]} 25. Nc4 {[%clk 0:01:38]}  Ba6 {[%clk 0:01:37]} 26. Qxe4 {[%clk 0:01:36]}  Bxc4 {[%clk 0:01:37]} 27. Qxc4 {[%clk 0:01:35]}  Qxc4 {[%clk 0:01:35]} 28. bxc4 {[%clk 0:01:35]}  Rd4 {[%clk 0:01:31]} 29. Bxe7 {[%clk 0:01:21]}  Rc8 {[%clk 0:01:31]} 30. f5 {[%clk 0:01:19]}  Rdxc4 {[%clk 0:01:25]} 31. fxg6 {[%clk 0:01:19]}  hxg6 {[%clk 0:01:23]} 32. Bf6 {[%clk 0:01:14]}  Bxf6 {[%clk 0:01:17]} 33. Rxf6 {[%clk 0:01:13]}  Rxc2 {[%clk 0:01:08]} 34. Re7 {[%clk 0:01:11]}  Rf8 {[%clk 0:01:02]} 35. Re5 {[%clk 0:01:10]}  Rd8 {[%clk 0:00:52]} 36. Rxa5 {[%clk 0:01:08]}  Rdd2 {[%clk 0:00:52]} 37. Ra7 {[%clk 0:00:58]}  Rxg2 {[%clk 0:00:45]} 38. Raxf7 {[%clk 0:00:58]}  Rh2+ {[%clk 0:00:35]} 39. Kg1 {[%clk 0:00:57]}  Rcg2+ {[%clk 0:00:31]} 40. Kf1 {[%clk 0:00:57]}  Ra2 {[%clk 0:00:29]} 41. Rf8+ {[%clk 0:00:54]}  Kg7 {[%clk 0:00:29]} 42. R6f7+ {[%clk 0:00:50]}  Kh6 {[%clk 0:00:28]} 43. Kg1 {[%clk 0:00:48]}  Rhg2+ {[%clk 0:00:26]} 44. Kh1 {[%clk 0:00:46]}  Rgb2 {[%clk 0:00:25]} 45. Kg1 {[%clk 0:00:36]}  Rb1+ {[%clk 0:00:20]} 46. Rf1 {[%clk 0:00:36]}  Rbb2 {[%clk 0:00:21]} 47. R1f3 {[%clk 0:00:27]}  Rg2+ {[%clk 0:00:19]} 48. Kf1 {[%clk 0:00:26]}  Rgc2 {[%clk 0:00:18]} 49. Kg1 {[%clk 0:00:25]}  Rxa4 {[%clk 0:00:17]} 50. Rh8+ {[%clk 0:00:21]}  Kg7 {[%clk 0:00:17]} 51. Rhf8 {[%clk 0:00:20]}  Ra1+ {[%clk 0:00:16]} 52. Rf1 {[%clk 0:00:20]}  Raa2 {[%clk 0:00:17]} 53. h4 {[%clk 0:00:19]}  Rg2+ {[%clk 0:00:16]} 54. Kh1 {[%clk 0:00:18]}  Rh2+ {[%clk 0:00:17]} 55. Kg1 {[%clk 0:00:18]}  Rag2# {[%clk 0:00:18]} 0-1


[Site "https://www.chess.com"]

[Event "Titled Tuesday Blitz December 27 Early 2022"]
[White "Diaz, Fernando"]
[Black "Buscar, Michael"]
[WhiteFideId "3701255"]
[BlackFideId "2603616"]
[WhiteElo "2121"]
[BlackElo "2041"]
[Result "1-0"]
[Round "05"]
[TimeControl "180+2"]
[Date "2022.12.27"]
[WhiteClock "0:00:08"]
[BlackClock "0:00:46"]

1. e4 {[%clk 0:02:55]}  c5 {[%clk 0:02:59]} 2. d4 {[%clk 0:02:55]}  cxd4 {[%clk 0:02:58]} 3. c3 {[%clk 0:02:56]}  Nf6 {[%clk 0:02:58]} 4. e5 {[%clk 0:02:56]}  Nd5 {[%clk 0:02:59]} 5. Nf3 {[%clk 0:02:57]}  Nc6 {[%clk 0:02:59]} 6. cxd4 {[%clk 0:02:58]}  d6 {[%clk 0:02:59]} 7. a3 {[%clk 0:02:58]}  e6 {[%clk 0:02:58]} 8. Bd3 {[%clk 0:02:58]}  Be7 {[%clk 0:02:58]} 9. O-O {[%clk 0:02:58]}  Bd7 {[%clk 0:02:59]} 10. Qe2 {[%clk 0:02:59]}  O-O {[%clk 0:02:58]} 11. Bd2 {[%clk 0:02:59]}  Rc8 {[%clk 0:02:45]} 12. Nc3 {[%clk 0:02:57]}  Qb6 {[%clk 0:02:28]} 13. Nxd5 {[%clk 0:02:35]}  exd5 {[%clk 0:02:26]} 14. Bc3 {[%clk 0:02:01]}  Bg4 {[%clk 0:02:23]} 15. Rad1 {[%clk 0:01:57]}  Rfe8 {[%clk 0:02:13]} 16. h3 {[%clk 0:01:31]}  Bh5 {[%clk 0:02:11]} 17. Bb1 {[%clk 0:01:19]}  dxe5 {[%clk 0:02:05]} 18. dxe5 {[%clk 0:01:16]}  d4 {[%clk 0:02:05]} 19. Bxd4 {[%clk 0:00:53]}  Nxd4 {[%clk 0:02:00]} 20. Rxd4 {[%clk 0:00:51]}  Bxf3 {[%clk 0:01:58]} 21. Qd3 {[%clk 0:00:47]}  Bc5 {[%clk 0:01:49]} 22. Rd7 {[%clk 0:00:41]}  Bxf2+ {[%clk 0:01:12]} 23. Rxf2 {[%clk 0:00:37]}  Rc1+ {[%clk 0:01:10]} 24. Kh2 {[%clk 0:00:36]}  Rxb1 {[%clk 0:01:10]} 25. Qxf3 {[%clk 0:00:32]}  Qe6 {[%clk 0:01:04]} 26. Qxf7+ {[%clk 0:00:27]}  Qxf7 {[%clk 0:01:04]} 27. Rfxf7 {[%clk 0:00:28]}  Rxe5 {[%clk 0:01:05]} 28. Rxg7+ {[%clk 0:00:24]}  Kf8 {[%clk 0:01:05]} 29. Rdf7+ {[%clk 0:00:21]}  Ke8 {[%clk 0:01:05]} 30. Rxb7 {[%clk 0:00:20]}  Kf8 {[%clk 0:01:01]} 31. Rxh7 {[%clk 0:00:18]}  Kg8 {[%clk 0:01:02]} 32. Rhg7+ {[%clk 0:00:18]}  Kh8 {[%clk 0:01:02]} 33. Rgc7 {[%clk 0:00:17]}  Re8 {[%clk 0:01:00]} 34. b4 {[%clk 0:00:16]}  a6 {[%clk 0:00:56]} 35. Rh7+ {[%clk 0:00:15]}  Kg8 {[%clk 0:00:56]} 36. Rbg7+ {[%clk 0:00:15]}  Kf8 {[%clk 0:00:57]} 37. Rh8+ {[%clk 0:00:14]}  Kxg7 {[%clk 0:00:57]} 38. Rxe8 {[%clk 0:00:15]}  Rb3 {[%clk 0:00:56]} 39. Re7+ {[%clk 0:00:13]}  Kf8 {[%clk 0:00:55]} 40. Ra7 {[%clk 0:00:10]}  Rxa3 {[%clk 0:00:56]} 41. b5 {[%clk 0:00:11]}  Rb3 {[%clk 0:00:53]} 42. bxa6 {[%clk 0:00:10]}  Ke8 {[%clk 0:00:54]} 43. h4 {[%clk 0:00:09]}  Rb5 {[%clk 0:00:53]} 44. g4 {[%clk 0:00:09]}  Rb3 {[%clk 0:00:53]} 45. h5 {[%clk 0:00:09]}  Kf8 {[%clk 0:00:53]} 46. h6 {[%clk 0:00:08]}  Kg8 {[%clk 0:00:54]} 47. Kg2 {[%clk 0:00:06]}  Rb6 {[%clk 0:00:52]} 48. g5 {[%clk 0:00:05]}  Rb5 {[%clk 0:00:53]} 49. Rg7+ {[%clk 0:00:04]}  Kh8 {[%clk 0:00:53]} 50. a7 {[%clk 0:00:04]}  Ra5 {[%clk 0:00:53]} 51. Kg3 {[%clk 0:00:05]}  Ra3+ {[%clk 0:00:53]} 52. Kg4 {[%clk 0:00:06]}  Ra4+ {[%clk 0:00:51]} 53. Kh5 {[%clk 0:00:06]}  Rh4+ {[%clk 0:00:52]} 54. Kg6 {[%clk 0:00:07]}  Ra4 {[%clk 0:00:51]} 55. Rb7 {[%clk 0:00:06]}  Ra6+ {[%clk 0:00:50]} 56. Kh5 {[%clk 0:00:07]}  Rc6 {[%clk 0:00:48]} 57. Rb8+ {[%clk 0:00:07]}  Kh7 {[%clk 0:00:48]} 58. a8=Q {[%clk 0:00:08]}  Rxh6+ {[%clk 0:00:46]} 59. Kg4 {[%clk 0:00:08]}  Rh4+ {[%clk 0:00:46]} 60. Kxh4 {[%clk 0:00:08]} 1-0


[Site "https://www.chess.com"]

[Event "Titled Tuesday Blitz December 27 Early 2022"]
[White "Dimitrov, Atanas"]
[Black "Begunov, Konstantin"]
[WhiteFideId "2901315"]
[BlackFideId "4118510"]
[WhiteElo "2269"]
[BlackElo "2325"]
[Result "1-0"]
[Round "05"]
[TimeControl "180+2"]
[Date "2022.12.27"]
[WhiteClock "0:00:06"]
[BlackClock "0:00:01"]

1. Nf3 {[%clk 0:02:56]}  d5 {[%clk 0:02:59]} 2. g3 {[%clk 0:02:57]}  c6 {[%clk 0:03:00]} 3. Bg2 {[%clk 0:02:57]}  Bg4 {[%clk 0:03:01]} 4. O-O {[%clk 0:02:57]}  Nd7 {[%clk 0:03:01]} 5. d4 {[%clk 0:02:54]}  e6 {[%clk 0:03:01]} 6. Nbd2 {[%clk 0:02:54]}  f5 {[%clk 0:02:59]} 7. c4 {[%clk 0:02:54]}  Bd6 {[%clk 0:02:59]} 8. b3 {[%clk 0:02:54]}  Ngf6 {[%clk 0:02:59]} 9. Bb2 {[%clk 0:02:54]}  O-O {[%clk 0:02:59]} 10. e3 {[%clk 0:02:54]}  Qe7 {[%clk 0:02:59]} 11. Qc2 {[%clk 0:02:53]}  Ne4 {[%clk 0:02:58]} 12. Ne1 {[%clk 0:02:51]}  Be2 {[%clk 0:02:36]} 13. Nd3 {[%clk 0:02:43]}  Bxf1 {[%clk 0:02:33]} 14. Rxf1 {[%clk 0:02:44]}  Nxd2 {[%clk 0:02:28]} 15. Qxd2 {[%clk 0:02:43]}  a5 {[%clk 0:02:13]} 16. Rc1 {[%clk 0:02:38]}  Ba3 {[%clk 0:02:09]} 17. h4 {[%clk 0:02:26]}  Bxb2 {[%clk 0:02:09]} 18. Qxb2 {[%clk 0:02:23]}  a4 {[%clk 0:01:42]} 19. cxd5 {[%clk 0:02:18]}  exd5 {[%clk 0:01:38]} 20. bxa4 {[%clk 0:02:18]}  Nf6 {[%clk 0:01:22]} 21. Nc5 {[%clk 0:02:15]}  Rfb8 {[%clk 0:01:22]} 22. Qb6 {[%clk 0:02:07]}  Ne4 {[%clk 0:01:10]} 23. Qb3 {[%clk 0:01:46]}  Ra5 {[%clk 0:00:58]} 24. Nd3 {[%clk 0:01:39]}  Rba8 {[%clk 0:00:54]} 25. Nb2 {[%clk 0:01:32]}  Qc7 {[%clk 0:00:42]} 26. Rc2 {[%clk 0:01:15]}  R5a6 {[%clk 0:00:41]} 27. Qxd5+ {[%clk 0:00:24]}  cxd5 {[%clk 0:00:34]} 28. Rxc7 {[%clk 0:00:24]}  Rb6 {[%clk 0:00:33]} 29. Rc2 {[%clk 0:00:25]}  Rc6 {[%clk 0:00:31]} 30. Re2 {[%clk 0:00:23]}  Rc1+ {[%clk 0:00:29]} 31. Kh2 {[%clk 0:00:23]}  Ra1 {[%clk 0:00:25]} 32. Nd3 {[%clk 0:00:21]}  Rxa4 {[%clk 0:00:19]} 33. Rc2 {[%clk 0:00:17]}  R1xa2 {[%clk 0:00:15]} 34. Rc7 {[%clk 0:00:12]}  Rc4 {[%clk 0:00:11]} 35. Rxb7 {[%clk 0:00:11]}  Nxf2 {[%clk 0:00:10]} 36. Bxd5+ {[%clk 0:00:08]}  Kf8 {[%clk 0:00:09]} 37. Bxc4 {[%clk 0:00:08]}  Ng4+ {[%clk 0:00:09]} 38. Kg1 {[%clk 0:00:09]}  Rc2 {[%clk 0:00:08]} 39. Bb5 {[%clk 0:00:06]}  Nxe3 {[%clk 0:00:07]} 40. Nf4 {[%clk 0:00:05]}  g6 {[%clk 0:00:04]} 41. Ne6+ {[%clk 0:00:05]}  Kg8 {[%clk 0:00:02]} 42. Rg7+ {[%clk 0:00:06]}  Kh8 {[%clk 0:00:02]} 43. Re7 {[%clk 0:00:06]}  h6 {[%clk 0:00:01]} 44. Re8+ {[%clk 0:00:06]}  Kh7 {[%clk 0:00:01]} 45. Bd3 {[%clk 0:00:06]} 1-0


[Site "https://www.chess.com"]

[Event "Titled Tuesday Blitz December 27 Early 2022"]
[White "Fabris, Alberto"]
[Black "Sanchez, Robert"]
[WhiteFideId "801348"]
[BlackFideId "2034360"]
[WhiteElo "2230"]
[BlackElo "1966"]
[Result "1-0"]
[Round "05"]
[TimeControl "180+2"]
[Date "2022.12.27"]
[WhiteClock "0:00:28"]
[BlackClock "0:00:09"]

1. d4 {[%clk 0:03:00]}  Nf6 {[%clk 0:02:58]} 2. Nf3 {[%clk 0:03:00]}  e6 {[%clk 0:02:58]} 3. Bf4 {[%clk 0:02:59]}  d5 {[%clk 0:02:58]} 4. e3 {[%clk 0:02:59]}  Bd6 {[%clk 0:02:53]} 5. Bd3 {[%clk 0:02:55]}  O-O {[%clk 0:02:52]} 6. O-O {[%clk 0:02:54]}  c5 {[%clk 0:02:53]} 7. c3 {[%clk 0:02:54]}  Nc6 {[%clk 0:02:53]} 8. Bxd6 {[%clk 0:02:44]}  Qxd6 {[%clk 0:02:53]} 9. Nbd2 {[%clk 0:02:42]}  e5 {[%clk 0:02:49]} 10. dxe5 {[%clk 0:02:41]}  Nxe5 {[%clk 0:02:50]} 11. Nxe5 {[%clk 0:02:40]}  Qxe5 {[%clk 0:02:51]} 12. Nf3 {[%clk 0:02:36]}  Qd6 {[%clk 0:02:46]} 13. h3 {[%clk 0:02:34]}  h6 {[%clk 0:02:40]} 14. Bc2 {[%clk 0:02:33]}  Be6 {[%clk 0:02:38]} 15. Qd2 {[%clk 0:02:30]}  Rad8 {[%clk 0:02:37]} 16. Rad1 {[%clk 0:02:29]}  Qb6 {[%clk 0:02:31]} 17. Bb1 {[%clk 0:02:20]}  Rfe8 {[%clk 0:02:20]} 18. Qc2 {[%clk 0:02:18]}  g6 {[%clk 0:02:15]} 19. a3 {[%clk 0:02:14]}  Bf5 {[%clk 0:02:07]} 20. Qc1 {[%clk 0:02:11]}  Bxb1 {[%clk 0:02:06]} 21. Qxb1 {[%clk 0:02:11]}  Kg7 {[%clk 0:01:58]} 22. b4 {[%clk 0:02:06]}  Ne4 {[%clk 0:01:52]} 23. Qc2 {[%clk 0:02:04]}  Qf6 {[%clk 0:01:47]} 24. Rd3 {[%clk 0:01:53]}  Rc8 {[%clk 0:01:33]} 25. b5 {[%clk 0:01:48]}  Red8 {[%clk 0:01:21]} 26. Rfd1 {[%clk 0:01:45]}  Qe6 {[%clk 0:01:15]} 27. a4 {[%clk 0:01:39]}  c4 {[%clk 0:01:04]} 28. Rd4 {[%clk 0:01:38]}  Nc5 {[%clk 0:01:04]} 29. R4d2 {[%clk 0:01:23]}  Nd3 {[%clk 0:00:53]} 30. Ne1 {[%clk 0:01:21]}  Nc5 {[%clk 0:00:49]} 31. Nf3 {[%clk 0:01:16]}  Nb3 {[%clk 0:00:48]} 32. Nd4 {[%clk 0:01:07]}  Qf6 {[%clk 0:00:40]} 33. Nxb3 {[%clk 0:01:03]}  cxb3 {[%clk 0:00:41]} 34. Qxb3 {[%clk 0:01:03]}  Rxc3 {[%clk 0:00:41]} 35. Qb2 {[%clk 0:00:58]}  Qe5 {[%clk 0:00:32]} 36. Rd3 {[%clk 0:00:51]}  Rdc8 {[%clk 0:00:29]} 37. Rxc3 {[%clk 0:00:46]}  Rxc3 {[%clk 0:00:27]} 38. Rxd5 {[%clk 0:00:40]}  Qxd5 {[%clk 0:00:25]} 39. Qxc3+ {[%clk 0:00:40]}  Kh7 {[%clk 0:00:26]} 40. Qd4 {[%clk 0:00:35]}  Qxd4 {[%clk 0:00:19]} 41. exd4 {[%clk 0:00:35]}  Kg7 {[%clk 0:00:19]} 42. Kf1 {[%clk 0:00:35]}  Kf6 {[%clk 0:00:20]} 43. Ke2 {[%clk 0:00:36]}  Ke6 {[%clk 0:00:20]} 44. Kd3 {[%clk 0:00:36]}  Kd5 {[%clk 0:00:21]} 45. a5 {[%clk 0:00:34]}  b6 {[%clk 0:00:19]} 46. a6 {[%clk 0:00:32]}  f5 {[%clk 0:00:18]} 47. f4 {[%clk 0:00:30]}  g5 {[%clk 0:00:16]} 48. g3 {[%clk 0:00:28]}  gxf4 {[%clk 0:00:10]} 49. gxf4 {[%clk 0:00:28]}  h5 {[%clk 0:00:08]} 50. h4 {[%clk 0:00:28]}  Kd6 {[%clk 0:00:08]} 51. Kc4 {[%clk 0:00:28]}  Ke6 {[%clk 0:00:08]} 52. d5+ {[%clk 0:00:28]}  Kd6 {[%clk 0:00:09]} 53. Kd4 {[%clk 0:00:28]} 1-0


[Site "https://www.chess.com"]

[Event "Titled Tuesday Blitz December 27 Early 2022"]
[White "Fernandez Garcia, Gumersindo"]
[Black "Orzech, Dominik"]
[WhiteFideId "24516740"]
[BlackFideId "1115065"]
[WhiteElo "2160"]
[BlackElo "2308"]
[Result "0-1"]
[Round "05"]
[TimeControl "180+2"]
[Date "2022.12.27"]
[WhiteClock "0:00:10"]
[BlackClock "0:01:20"]

1. Nf3 {[%clk 0:01:14]}  c5 {[%clk 0:02:52]} 2. e3 {[%clk 0:01:07]}  g6 {[%clk 0:02:51]} 3. c3 {[%clk 0:01:07]}  Bg7 {[%clk 0:02:52]} 4. d4 {[%clk 0:01:08]}  Nf6 {[%clk 0:02:51]} 5. Bd3 {[%clk 0:01:08]}  O-O {[%clk 0:02:50]} 6. O-O {[%clk 0:01:09]}  Qc7 {[%clk 0:02:50]} 7. h3 {[%clk 0:01:09]}  b6 {[%clk 0:02:50]} 8. Nbd2 {[%clk 0:01:10]}  Bb7 {[%clk 0:02:50]} 9. Qe2 {[%clk 0:01:10]}  Nc6 {[%clk 0:02:49]} 10. dxc5 {[%clk 0:01:10]}  bxc5 {[%clk 0:02:48]} 11. e4 {[%clk 0:01:10]}  d6 {[%clk 0:02:46]} 12. a4 {[%clk 0:01:09]}  Nd7 {[%clk 0:02:45]} 13. Re1 {[%clk 0:01:09]}  Nde5 {[%clk 0:02:44]} 14. Nxe5 {[%clk 0:01:09]}  Nxe5 {[%clk 0:02:45]} 15. Bc2 {[%clk 0:01:08]}  a5 {[%clk 0:02:45]} 16. Nf3 {[%clk 0:01:05]}  Ba6 {[%clk 0:02:44]} 17. Qd1 {[%clk 0:01:06]}  Nc4 {[%clk 0:02:43]} 18. Nd2 {[%clk 0:01:03]}  Ne5 {[%clk 0:02:42]} 19. Nf3 {[%clk 0:01:03]}  Nc4 {[%clk 0:02:42]} 20. Bd3 {[%clk 0:01:00]}  Qb7 {[%clk 0:02:38]} 21. Qe2 {[%clk 0:00:59]}  Nb6 {[%clk 0:02:36]} 22. Bg5 {[%clk 0:00:54]}  c4 {[%clk 0:02:29]} 23. Bb1 {[%clk 0:00:53]}  h6 {[%clk 0:02:29]} 24. Be3 {[%clk 0:00:51]}  Nd7 {[%clk 0:02:28]} 25. Qc2 {[%clk 0:00:51]}  Rab8 {[%clk 0:02:26]} 26. Bc1 {[%clk 0:00:48]}  Nc5 {[%clk 0:02:24]} 27. Re3 {[%clk 0:00:45]}  Nd3 {[%clk 0:02:19]} 28. Ra2 {[%clk 0:00:43]}  Qb3 {[%clk 0:02:12]} 29. Bd2 {[%clk 0:00:31]}  Qxc2 {[%clk 0:02:06]} 30. Bxc2 {[%clk 0:00:32]}  Nxb2 {[%clk 0:02:06]} 31. Nd4 {[%clk 0:00:28]}  Rfc8 {[%clk 0:02:01]} 32. Bc1 {[%clk 0:00:25]}  Nd3 {[%clk 0:02:00]} 33. Bd2 {[%clk 0:00:25]}  Nc5 {[%clk 0:01:57]} 34. f4 {[%clk 0:00:24]}  Nb3 {[%clk 0:01:56]} 35. Bxb3 {[%clk 0:00:21]}  cxb3 {[%clk 0:01:56]} 36. Rb2 {[%clk 0:00:22]}  Bxd4 {[%clk 0:01:45]} 37. cxd4 {[%clk 0:00:23]}  Rc2 {[%clk 0:01:44]} 38. Rxc2 {[%clk 0:00:19]}  bxc2 {[%clk 0:01:44]} 39. Rc3 {[%clk 0:00:20]}  Rb2 {[%clk 0:01:38]} 40. Bc1 {[%clk 0:00:20]}  Ra2 {[%clk 0:01:38]} 41. Kf2 {[%clk 0:00:20]}  Bb7 {[%clk 0:01:35]} 42. Ke3 {[%clk 0:00:20]}  f5 {[%clk 0:01:36]} 43. exf5 {[%clk 0:00:19]}  gxf5 {[%clk 0:01:36]} 44. g4 {[%clk 0:00:20]}  e6 {[%clk 0:01:35]} 45. gxf5 {[%clk 0:00:20]}  exf5 {[%clk 0:01:35]} 46. Rc7 {[%clk 0:00:21]}  Be4 {[%clk 0:01:35]} 47. Rc8+ {[%clk 0:00:20]}  Kf7 {[%clk 0:01:34]} 48. Kd2 {[%clk 0:00:18]}  Rxa4 {[%clk 0:01:32]} 49. Bb2 {[%clk 0:00:19]}  Ra2 {[%clk 0:01:31]} 50. Kc1 {[%clk 0:00:18]}  Ra4 {[%clk 0:01:31]} 51. Rc7+ {[%clk 0:00:17]}  Kg6 {[%clk 0:01:27]} 52. Ra7 {[%clk 0:00:18]}  d5 {[%clk 0:01:27]} 53. Ra6+ {[%clk 0:00:17]}  Kh5 {[%clk 0:01:27]} 54. h4 {[%clk 0:00:17]}  Kxh4 {[%clk 0:01:23]} 55. Rxh6+ {[%clk 0:00:16]}  Kg4 {[%clk 0:01:24]} 56. Ra6 {[%clk 0:00:13]}  Kxf4 {[%clk 0:01:23]} 57. Bc3 {[%clk 0:00:13]}  Ke3 {[%clk 0:01:20]} 58. Bxa5 {[%clk 0:00:10]}  Ra1+ {[%clk 0:01:19]} 59. Kb2 {[%clk 0:00:10]}  c1=Q+ {[%clk 0:01:20]} 60. Kb3 {[%clk 0:00:10]} 0-1


[Site "https://www.chess.com"]